bitfinex-derivatives/quotes_SOLF0:USTF0_20260129
["timestamp","ask_amount","ask_price","bid_price","bid_amount"]
[1769650890115,12.91199973,124.66,124.6,10.59381285]
[1769650890316,10.43651802,124.66,124.6,10.59381285]
[1769650890816,10.43651802,124.66,124.6,13.06929456]
[1769650891112,3.20641802,124.66,124.62,7.2324]
[1769650891311,112.4384,124.7,124.63,3.38705495]
[1769650891312,3.48315906,124.7,124.63,3.38705495]
[1769650891614,3.48315906,124.7,124.62,2.47548171]
[1769650891615,3.48315906,124.7,124.65,3.38705495]
[1769650892507,10.71105906,124.7,124.65,3.38705495]
[1769650893104,13.18654077,124.7,124.65,3.38705495]
[1769650894615,13.18654077,124.7,124.64,9.70608171]
[1769650895819,13.18654077,124.7,124.64,7.2306]
[1769650898115,13.18654077,124.7,124.64,10.61765495]
[1769650899222,10.71105906,124.7,124.64,13.09313666]
[1769650900515,10.71105906,124.7,124.65,3.42768506]
[1769650902423,13.18654077,124.7,124.65,3.42768506]
[1769650903419,5.81063083,124.68,124.63,3.42768506]
[1769650906624,2.47548171,124.67,124.63,3.42768506]
[1769650907026,5.81063083,124.68,124.63,3.42768506]
[1769650907328,2.47548171,124.68,124.63,3.42768506]
[1769650908926,5.81063083,124.68,124.63,3.42768506]
[1769650909429,2.47548171,124.67,124.63,3.42768506]
[1769650909629,2.47521048,124.67,124.63,3.42768506]
[1769650911337,5.8103596,124.66,124.61,3.42768506]
[1769650913635,5.8103596,124.64,124.59,3.42768506]
[1769650914231,5.8103596,124.64,124.59,10.66178506]
[1769650914530,2.47521048,124.63,124.59,10.66178506]
[1769650914726,2.47521048,124.63,124.59,3.42768506]
[1769650915034,5.8103596,124.64,124.59,3.42768506]
[1769650917435,2.47521048,124.63,124.57,3.54653049]
[1769650917637,5.83171454,124.63,124.57,3.54653049]
[1769650918038,2.47521048,124.64,124.59,7.2341]
[1769650918240,2.47521048,124.64,124.59,10.78063049]
[1769650919535,5.83171454,124.64,124.59,10.78063049]
[1769650920839,3.35650406,124.64,124.59,10.78063049]
[1769650921137,5.83171454,124.64,124.59,10.78063049]
[1769650923643,3.35650406,124.64,124.59,10.78063049]
[1769650924230,5.83171454,124.64,124.59,10.78063049]
[1769650925136,3.35650406,124.64,124.59,10.78063049]
[1769650925643,5.83171454,124.64,124.59,10.78063049]
[1769650928844,3.35650406,124.64,124.59,10.78063049]
[1769650931551,3.35650406,124.64,124.59,13.25584097]
[1769650931741,13.06181454,124.66,124.6,3.54653049]
[1769650932048,13.06181454,124.66,124.59,9.70931048]
[1769650932049,3.35650406,124.68,124.63,3.54653049]
[1769650933348,3.35650406,124.68,124.63,13.25334097]
[1769650934253,3.35650406,124.68,124.64,7.2312]
[1769650934455,3.35650406,124.7,124.64,6.02174097]
[1769650934660,3.35650406,124.7,124.65,2.47521048]
[1769650935254,3.35650406,124.7,124.65,9.70571048]
[1769650935555,3.35650406,124.72,124.67,3.54653049]
[1769650935751,3.35650406,124.72,124.67,6.02174097]
[1769650936460,3.35650406,124.72,124.68,2.47521048]
[1769650936656,10.58240406,124.74,124.69,2.47521048]
[1769650937746,10.58250406,124.73,124.68,6.02174097]
[1769650938256,10.58250406,124.73,124.68,3.54653049]
[1769650939457,3.35650406,124.72,124.67,2.47521048]
[1769650939861,3.35650406,124.71,124.65,2.47521048]
[1769650941462,7.228,124.7,124.65,2.47521048]
[1769650942764,7.228,124.7,124.64,6.02174097]
[1769650943067,10.58500406,124.69,124.64,3.54653049]
[1769650946665,13.06021454,124.69,124.64,3.54653049]
[1769650952471,5.78308364,124.67,124.61,9.70761048]
[1769650952674,2.47521048,124.66,124.61,7.2324]
[1769650952973,5.78308364,124.66,124.6,322.74114645]
[1769650953172,5.78308364,124.65,124.6,3.42114645]
[1769650953877,5.78308364,124.64,124.58,10.65534645]
[1769650954065,2.47521048,124.63,124.58,10.65534645]
[1769650954466,5.78308364,124.64,124.58,10.65534645]
[1769650955175,5.78308364,124.64,124.59,3.42114645]
[1769650956671,2.47521048,124.63,124.58,7.2342]
[1769650957275,2.47521048,124.63,124.58,10.65534645]
[1769650959078,5.78308364,124.64,124.59,7.2341]
[1769650959266,2.47521048,124.63,124.58,3.42114645]
[1769650959472,2.47521048,124.62,124.56,5.89635693]
[1769650959778,2.47521048,124.62,124.56,3.42114645]
[1769650960575,2.47521048,124.62,124.57,3.42114645]
[1769650961371,2.47521048,124.62,124.57,10.65624645]
[1769650962463,3.30787316,124.63,124.58,10.65574645]
[1769650962775,5.78308364,124.63,124.58,10.65574645]
[1769650964372,3.30787316,124.63,124.58,3.42114645]
[1769650964578,2.47521048,124.64,124.59,10.65524645]
[1769650965077,5.78308364,124.64,124.59,10.65524645]
[1769650966976,2.47521048,124.63,124.59,10.65524645]
[1769650968876,2.47521048,124.63,124.59,3.42114645]
[1769650969675,13.01438364,124.64,124.59,3.42114645]
[1769650971680,9.70807611,124.64,124.59,3.42114645]
[1769650973780,13.01594927,124.64,124.59,3.42114645]
[1769650978789,10.53917316,124.64,124.59,3.42114645]
[1769650979987,13.13167259,124.66,124.6,3.44585603]
[1769650980182,10.65489648,124.66,124.61,3.44585603]
[1769650980389,3.42429648,124.66,124.61,3.44585603]
[1769650980590,9.70617611,124.68,124.61,10.67865603]
[1769650980887,5.90107259,124.68,124.62,2.47677611]
[1769650981193,5.90107259,124.68,124.62,5.92263214]
[1769650981793,3.42429648,124.68,124.65,2.47677611]
[1769650982194,7.2282,124.7,124.65,2.47677611]
[1769650982392,452.8448,124.74,124.67,2.47677611]
[1769650982691,276.8448,124.74,124.67,2.47677611]
[1769650983192,7.2279,124.7,124.64,7.2312]
[1769650983389,7.2279,124.7,124.66,2.47677611]
[1769650983692,112.4212,124.72,124.64,2.47677611]
[1769650985389,7.2289,124.69,124.64,2.47677611]
[1769650991801,7.2289,124.69,124.66,2.47677611]
[1769650992097,7.2277,124.71,124.66,2.47677611]
[1769650992498,112.4212,124.72,124.66,2.47677611]
[1769650993293,7.2279,124.7,124.66,2.47677611]
[1769650993489,276.8448,124.74,124.66,2.47677611]
[1769650993694,276.8448,124.74,124.68,2.47677611]
[1769650994497,7.2269,124.72,124.68,2.47677611]
[1769650998004,7.2272,124.71,124.67,2.47677611]
[1769650999603,7.2266,124.72,124.67,2.47677611]
[1769651006905,7.2266,124.72,124.67,3.69330949]
[1769651007106,172.98,124.75,124.7,7.611e-05]
[1769651007300,112.3788,124.76,124.7,7.611e-05]
[1769651007994,7.2245,124.76,124.69,3.69330949]
[1769651008199,173.24,124.79,124.74,2.47677611]
[1769651008597,7.2234,124.78,124.74,2.47677611]
[1769651010008,7.2234,124.78,124.73,2.47677611]
[1769651011513,7.2239,124.77,124.7,3.69330949]
[1769651011704,7.2239,124.77,124.72,2.47677611]
[1769651011903,7.2244,124.76,124.72,2.47677611]
[1769651016809,7.2244,124.76,124.7,3.69330949]
[1769651016810,112.3695,124.77,124.7,2.47677611]
[1769651018020,2.47677611,124.76,124.68,7.40847366]
[1769651018221,177.88,124.75,124.68,7.40847366]
[1769651018519,7.2255,124.74,124.68,7.40847366]
[1769651019219,2.47677611,124.72,124.65,2.47677611]
[1769651019427,180.75677611,124.71,124.64,8.64686171]
[1769651019719,2.47677611,124.71,124.64,8.64686171]
[1769651020430,2.47677611,124.71,124.64,15.87806171]
[1769651020431,9.70407611,124.71,124.64,15.87806171]
[1769651022823,9.70407611,124.71,124.65,6.1700856]
[1769651023724,7.2273,124.71,124.65,6.1700856]
[1769651024621,178.32,124.72,124.66,8.64686171]
[1769651024818,178.32,124.72,124.66,6.1700856]
[1769651025118,180.79677611,124.72,124.66,6.1700856]
[1769651026028,2.47677611,124.71,124.66,6.1700856]
[1769651027722,2.47677611,124.71,124.64,2.47677611]
[1769651027935,2.47677611,124.71,124.64,8.64686171]
[1769651028823,2.47677611,124.7,124.64,6.1700856]
[1769651029023,2.47677611,124.69,124.62,15.87926171]
[1769651029319,2.47677611,124.69,124.63,6.1700856]
[1769651029722,9.70457611,124.7,124.63,8.64686171]
[1769651029922,9.70457611,124.7,124.64,6.1700856]
[1769651030617,7.2278,124.7,124.64,6.1700856]
[1769651030823,181.1,124.7,124.66,8.64686171]
[1769651031630,188.4071,124.72,124.66,8.64391019]
[1769651033525,2.47382459,124.71,124.66,6.1700856]
[1769651035932,188.4071,124.72,124.66,6.1700856]
[1769651038230,190.2471,124.72,124.66,6.1700856]
[1769651038432,192.72092459,124.72,124.66,6.1700856]
[1769651041435,9.70112459,124.71,124.64,13.4012856]
[1769651041736,2.47382459,124.7,124.64,13.4012856]
[1769651042935,2.47382459,124.7,124.65,6.1700856]
[1769651044442,9.70102459,124.71,124.65,6.1700856]
[1769651044631,194.38102459,124.71,124.65,6.1700856]
[1769651045838,2.47382459,124.7,124.65,6.1700856]
[1769651046038,2.47382459,124.69,124.63,6.1700856]
[1769651046339,2.47382459,124.66,124.61,13.4029856]
[1769651046733,2.47382459,124.66,124.61,6.1700856]
[1769651047732,2.47382459,124.68,124.62,6.1700856]
[1769651050634,188.27382459,124.68,124.62,6.1700856]
[1769651051943,195.50292459,124.68,124.62,6.1700856]
[1769651053143,9.70292459,124.68,124.62,6.1700856]
[1769651053343,196.20292459,124.68,124.62,6.1700856]
[1769651056347,9.70292459,124.68,124.62,6.1700856]
[1769651056647,197.06292459,124.68,124.62,6.1700856]
[1769651057141,9.70292459,124.68,124.62,6.1700856]
[1769651057340,187.42,124.72,124.63,8.64391019]
[1769651057540,2.47382459,124.71,124.64,6.1700856]
[1769651057834,2.47382459,124.7,124.64,6.1700856]
[1769651058045,9.70162459,124.7,124.64,6.1700856]
[1769651058444,2.47382459,124.69,124.64,6.1700856]
[1769651058637,7.2278,124.7,124.64,6.1700856]
[1769651059849,7.2272,124.71,124.64,13.4012856]
[1769651060051,188.02,124.7,124.64,15.87511019]
[1769651061552,195.2479,124.7,124.64,15.87511019]
[1769651064148,188.02,124.7,124.64,15.87511019]
[1769651064755,9.70112459,124.71,124.64,8.64391019]
[1769651065051,189.3,124.7,124.64,8.64391019]
[1769651065458,189.3,124.7,124.65,6.1700856]
[1769651065646,189.46,124.7,124.65,6.1700856]
[1769651069156,196.6878,124.7,124.64,2.47382459]
[1769651069354,189.46,124.7,124.64,15.87511019]
[1769651069554,189.46,124.7,124.65,6.1700856]
[1769651069853,190.62,124.73,124.67,6.1700856]
[1769651070255,193.09382459,124.73,124.65,8.64391019]
[1769651070851,2.47382459,124.72,124.65,8.64391019]
[1769651071044,2.47382459,124.71,124.65,6.1700856]
[1769651071251,2.47382459,124.69,124.63,23.1700856]
[1769651071443,191.04,124.69,124.63,6.1700856]
[1769651072453,191.04,124.69,124.63,13.4018856]
[1769651072756,191.04,124.69,124.64,6.1700856]
[1769651078065,9.70092459,124.72,124.64,6.1700856]
[1769651078363,192.92,124.71,124.64,6.1700856]
[1769651078765,200.1473,124.71,124.65,6.1700856]
[1769651080065,202.62112459,124.71,124.65,6.1700856]
[1769651081061,200.1473,124.71,124.64,7.2311]
[1769651081266,9.70162459,124.7,124.64,7.2311]
[1769651081567,2.47382459,124.69,124.64,7.2311]
[1769651082165,2.47382459,124.69,124.64,13.4011856]
[1769651083063,2.47382459,124.66,124.59,6.1700856]
[1769651083267,2.47382459,124.64,124.59,6.1700856]
[1769651084468,2.47382459,124.64,124.59,13.4039856]
[1769651084769,196.61382459,124.66,124.6,6.1700856]
[1769651085764,2.47382459,124.65,124.6,6.1700856]
[1769651086067,2.47382459,124.65,124.6,13.4034856]
[1769651088069,2.47382459,124.64,124.6,13.4034856]
[1769651089269,7.2283,124.7,124.62,13.4022856]
[1769651089570,2.47382459,124.68,124.62,15.87611019]
[1769651091168,195.72,124.71,124.64,6.1700856]
[1769651091370,2.47382459,124.72,124.66,6.1700856]
[1769651091673,198.03376253,124.72,124.66,6.1700856]
[1769651093777,2.47376253,124.72,124.66,6.1700856]
[1769651094073,9.70036253,124.72,124.66,6.1700856]
[1769651094273,2.47376253,124.72,124.66,6.1700856]
[1769651094470,198.73376253,124.72,124.66,6.1700856]
[1769651096174,7.44671189,124.76,124.68,8.64384813]
[1769651096367,196.76,124.75,124.68,8.64384813]
[1769651096769,196.76,124.75,124.68,15.87254813]
[1769651097276,199.37376253,124.75,124.68,15.87254813]
[1769651097874,2.47376253,124.74,124.67,7.2295]
[1769651098070,2.47376253,124.73,124.67,13.3995856]
[1769651098577,2.47376253,124.72,124.67,13.3995856]
[1769651098972,2.47376253,124.72,124.68,6.1700856]
[1769651099178,2.47376253,124.72,124.66,8.64384813]
[1769651099375,2.47376253,124.71,124.66,6.1700856]
[1769651100267,2.47376253,124.71,124.66,13.3999856]
[1769651100779,2.47376253,124.72,124.66,13.3999856]
[1769651100979,2.47376253,124.7,124.66,6.1700856]
[1769651101478,2.47376253,124.71,124.66,6.1700856]
[1769651101679,2.47376253,124.7,124.66,6.1700856]
[1769651101879,2.47376253,124.7,124.66,5.49852171]
[1769651102178,2.47376253,124.71,124.66,12.72852171]
[1769651102380,2.47376253,124.72,124.66,12.72852171]
[1769651102870,2.47376253,124.72,124.66,5.49852171]
[1769651103179,2.47376253,124.72,124.67,7.2293]
[1769651103383,199.39376253,124.74,124.67,2.47376253]
[1769651103778,2.47376253,124.71,124.66,7.2295]
[1769651104381,2.47376253,124.7,124.65,5.83430366]
[1769651104585,2.47376253,124.69,124.65,5.83430366]
[1769651105182,2.47376253,124.69,124.65,13.06480366]
[1769651110088,2.47376253,124.7,124.65,13.06480366]
[1769651110796,2.47376253,124.69,124.65,13.06480366]
[1769651110998,2.47376253,124.7,124.65,13.06480366]
[1769651112198,2.47376253,124.71,124.66,5.83430366]
[1769651113287,2.47376253,124.7,124.66,5.83430366]
[1769651114196,2.47376253,124.71,124.66,13.06430366]
[1769651114598,2.47376253,124.7,124.66,13.06430366]
[1769651114799,2.47376253,124.7,124.66,5.83430366]
[1769651117194,2.47376253,124.68,124.64,5.83430366]
[1769651117695,2.47376253,124.69,124.64,13.06520366]
[1769651120194,2.47376253,124.68,124.64,13.06520366]
[1769651123702,2.47376253,124.7,124.65,5.83430366]
[1769651125207,2.47376253,124.7,124.65,13.06490366]
[1769651129107,2.47376253,124.7,124.65,7.2306]
[1769651129308,2.47376253,124.71,124.67,5.83430366]
[1769651131708,2.47376253,124.72,124.67,5.83430366]
[1769651133707,2.47376253,124.71,124.66,7.2298]
[1769651133905,2.47376253,124.71,124.66,13.06410366]
[1769651134512,2.47376253,124.71,124.67,5.83430366]
[1769651135217,2.47376253,124.72,124.67,5.83430366]
[1769651136617,2.47376253,124.71,124.67,5.83430366]
[1769651136813,225.44,124.73,124.64,5.83430366]
[1769651137011,205.63376253,124.72,124.66,5.83430366]
[1769651137315,2.47376253,124.71,124.66,5.83430366]
[1769651138315,2.47376253,124.7,124.66,5.83430366]
[1769651141215,2.47376253,124.69,124.66,5.83430366]
[1769651143216,2.47376253,124.7,124.66,5.83430366]
[1769651143720,2.47376253,124.69,124.66,5.83430366]
[1769651144217,2.47376253,124.7,124.66,5.83430366]
[1769651145413,2.47376253,124.7,124.66,13.06430366]
[1769651145721,2.47376253,124.71,124.67,5.83430366]
[1769651146316,2.47376253,124.72,124.68,4.59742239]
[1769651147020,2.47376253,124.71,124.68,4.59742239]
[1769651149422,2.47376253,124.72,124.68,4.59742239]
[1769651150022,2.47376253,124.73,124.68,7.2288]
[1769651150326,2.47376253,124.73,124.69,3.36054113]
[1769651151322,2.47376253,124.74,124.7,3.36054113]
[1769651152429,2.47376253,124.73,124.7,3.36054113]
[1769651153626,2.47286519,124.74,124.7,3.36054113]
[1769651155225,2.47286519,124.72,124.66,3.36054113]
[1769651155426,2.47286519,124.71,124.67,3.36054113]
[1769651156618,2.47286519,124.72,124.67,3.36054113]
[1769651158628,9.69966519,124.72,124.67,3.36054113]
[1769651158932,2.47286519,124.71,124.65,3.36054113]
[1769651159127,119.83578777,124.75,124.65,3.36054113]
[1769651159128,2.87584341,124.7,124.65,3.36054113]
[1769651160327,2.47286519,124.7,124.65,3.36054113]
[1769651164835,7.2261,124.73,124.66,3.36054113]
[1769651165036,2.87584341,124.74,124.68,3.36054113]
[1769651165729,2.87584341,124.74,124.68,5.83340632]
[1769651165932,10.10124341,124.74,124.68,5.83340632]
[1769651166331,7.62837822,124.74,124.69,3.36054113]
[1769651166630,10.10124341,124.74,124.69,3.36054113]
[1769651168239,7.62767822,124.76,124.69,3.36054113]
[1769651168540,7.62767822,124.76,124.7,3.36054113]
[1769651168736,10.10054341,124.76,124.7,3.36054113]
[1769651169434,7.62767822,124.76,124.7,3.36054113]
[1769651169631,10.10054341,124.76,124.7,3.36054113]
[1769651173840,10.10084341,124.75,124.7,3.36054113]
[1769651174033,0.40297822,124.74,124.68,13.06230632]
[1769651174241,2.87584341,124.74,124.68,10.58944113]
[1769651174434,2.87584341,124.74,124.69,3.36054113]
[1769651174736,0.40297822,124.74,124.69,3.36054113]
[1769651174936,2.87584341,124.74,124.69,3.36054113]
[1769651175137,2.47286519,124.74,124.69,3.36054113]
[1769651175332,9.69786519,124.75,124.69,10.58884113]
[1769651175534,10.10084341,124.75,124.69,3.36054113]
[1769651175737,207.22,124.78,124.71,3.36054113]
[1769651175936,202.78148946,124.78,124.73,5.83340632]
[1769651176138,2.87584341,124.81,124.74,5.83340632]
[1769651176334,0.40297822,124.8,124.74,5.83340632]
[1769651176534,0.40297822,124.8,124.75,3.36054113]
[1769651177337,2.87584341,124.8,124.75,3.36054113]
[1769651177737,0.40297822,124.8,124.75,3.36054113]
[1769651178334,0.40297822,124.82,124.77,3.36054113]
[1769651179042,2.87584341,124.82,124.77,3.36054113]
[1769651179341,2.47286519,124.81,124.77,3.36054113]
[1769651181845,211.79286519,124.83,124.77,5.83340632]
[1769651182047,2.47286519,124.82,124.77,3.36054113]
[1769651182547,216.94327822,124.83,124.77,3.36054113]
[1769651182742,2.47286519,124.82,124.77,3.36054113]
[1769651182947,2.47286519,124.81,124.75,5.83340632]
[1769651183142,2.47286519,124.81,124.76,3.36054113]
[1769651185645,211.79286519,124.83,124.77,3.5498369]
[1769651186046,212.19457706,124.83,124.77,3.5498369]
[1769651186350,2.47286519,124.82,124.77,3.5498369]
[1769651186548,212.19457706,124.83,124.77,3.5498369]
[1769651186845,2.87457706,124.83,124.77,3.5498369]
[1769651187040,0.40171187,124.85,124.78,3.5498369]
[1769651187241,2.47286519,124.84,124.79,3.5498369]
[1769651187437,2.87457706,124.85,124.79,3.5498369]
[1769651188151,2.47286519,124.84,124.79,3.5498369]
[1769651189053,9.69246519,124.84,124.79,3.5498369]
[1769651189747,2.47286519,124.84,124.79,3.5498369]
[1769651190651,2.47286519,124.83,124.79,3.5498369]
[1769651190845,2.47286519,124.82,124.77,3.36054113]
[1769651192352,2.47286519,124.8,124.75,3.36054113]
[1769651194354,7.2214,124.81,124.75,3.36054113]
[1769651194355,2.47286519,124.79,124.75,3.36054113]
[1769651198767,2.47286519,124.78,124.73,10.58654113]
[1769651199266,2.47286519,124.78,124.74,3.36054113]
[1769651199867,7.222,124.8,124.74,3.36054113]
[1769651199868,2.47286519,124.79,124.74,10.58584113]
[1769651201265,2.47286519,124.79,124.75,3.36054113]
[1769651203865,0.40109384,124.81,124.76,3.36054113]
[1769651204063,112.2688,124.89,124.77,3.36054113]
[1769651204064,2.47286519,124.83,124.77,3.36054113]
[1769651204457,9.69316519,124.83,124.77,10.58414113]
[1769651204674,7.2203,124.83,124.78,3.36054113]
[1769651205376,9.69376519,124.82,124.78,3.36054113]
[1769651205564,2.47286519,124.82,124.76,3.36054113]
[1769651205974,7.2215,124.81,124.76,3.36054113]
[1769651206771,2.47286519,124.82,124.76,3.36054113]
[1769651206772,2.47286519,124.82,124.77,3.36054113]
[1769651208367,9.69366519,124.82,124.77,3.36054113]
[1769651208567,7.2208,124.82,124.77,3.36054113]
[1769651208871,7.62139384,124.83,124.77,10.58414113]
[1769651209074,7.62139384,124.83,124.79,3.36054113]
[1769651209075,7.2203,124.83,124.79,3.36054113]
[1769651209774,7.2203,124.83,124.78,2.47286519]
[1769651210674,7.2203,124.83,124.78,5.83340632]
[1769651211674,7.2203,124.83,124.78,3.36054113]
[1769651212672,9.69316519,124.83,124.78,3.36054113]
[1769651213483,2.47286519,124.83,124.79,3.36054113]
[1769651213670,323.4017,124.87,124.79,3.36054113]
[1769651213671,2.86986662,124.85,124.79,3.36054113]
[1769651214172,9.68887278,124.84,124.79,3.36054113]
[1769651218275,10.08985847,124.84,124.79,3.36054113]
[1769651218479,7.2203,124.83,124.79,3.36054113]
[1769651218974,10.09055847,124.82,124.76,7.2242]
[1769651219180,10.09055847,124.82,124.76,10.65654104]
[1769651219572,10.09055847,124.82,124.77,3.43234104]
[1769651221281,323.4017,124.87,124.77,3.43234104]
[1769651221282,2.86975847,124.84,124.78,3.43234104]
[1769651221670,10.08945847,124.84,124.78,3.43234104]
[1769651223382,10.09005847,124.83,124.78,3.43234104]
[1769651223576,2.46877278,124.82,124.78,3.43234104]
[1769651225186,2.46877278,124.82,124.78,10.65544104]
[1769651225687,10.08995847,124.83,124.78,10.65544104]
[1769651225877,10.08995847,124.83,124.78,3.43234104]
[1769651226073,2.86975847,124.83,124.78,3.43234104]
[1769651226377,2.46877278,124.82,124.78,3.43234104]
[1769651226980,9.68957278,124.82,124.78,3.43234104]
[1769651227282,2.46877278,124.81,124.76,10.65654104]
[1769651227681,2.46877278,124.81,124.77,3.43234104]
[1769651229482,2.46877278,124.82,124.77,7.2237]
[1769651229688,10.08995847,124.83,124.78,3.43234104]
[1769651229987,2.86975847,124.83,124.78,3.43234104]
[1769651230187,2.46877278,124.82,124.78,3.43234104]
[1769651231289,9.68957278,124.82,124.78,3.43234104]
[1769651233493,10.09055847,124.82,124.76,10.65654104]
[1769651233886,9.69027278,124.81,124.76,3.43234104]
[1769651234193,2.46877278,124.79,124.75,17.0]
[1769651234492,2.46877278,124.79,124.74,3.43234104]
[1769651234691,2.46877278,124.78,124.74,3.43234104]
[1769651234993,2.46877278,124.76,124.72,3.43234104]
[1769651236298,2.46877278,124.76,124.72,10.65874104]
[1769651236496,2.46877278,124.76,124.72,3.43234104]
[1769651239197,2.46877278,124.76,124.71,7.2271]
[1769651239198,2.46877278,124.73,124.7,3.43234104]
[1769651239594,2.46877278,124.73,124.68,3.43234104]
[1769651239794,2.46877278,124.71,124.68,3.43234104]
[1769651241686,2.46877278,124.72,124.68,3.43234104]
[1769651242191,2.46877278,124.73,124.68,3.43234104]
[1769651242997,2.46877278,124.73,124.69,3.43234104]
[1769651243198,9.69347278,124.76,124.7,3.43234104]
[1769651244500,2.46877278,124.75,124.7,3.43234104]
[1769651245302,9.69347278,124.76,124.7,3.43234104]
[1769651245803,2.46877278,124.77,124.72,3.36845569]
[1769651246006,2.87195028,124.77,124.72,3.36845569]
[1769651246304,2.46877278,124.76,124.7,13.06482847]
[1769651247499,2.46877278,124.75,124.7,3.36845569]
[1769651247704,2.46877278,124.75,124.68,3.36845569]
[1769651247705,2.46877278,124.74,124.68,3.36845569]
[1769651248200,2.46877278,124.73,124.68,3.36845569]
[1769651249304,2.87195028,124.74,124.69,3.36054113]
[1769651249499,2.46877278,124.74,124.69,3.36054113]
[1769651251609,9.69377278,124.75,124.69,3.36054113]
[1769651252002,10.0964455,124.75,124.69,3.36054113]
[1769651252811,2.46877278,124.74,124.69,3.36054113]
[1769651253013,9.69427278,124.74,124.69,3.36054113]
[1769651253511,2.46877278,124.74,124.69,3.36054113]
[1769651253711,10.0963455,124.75,124.69,3.36054113]
[1769651254604,2.46877278,124.74,124.69,3.36054113]
[1769651255714,9.69427278,124.74,124.69,3.36054113]
[1769651256213,2.46877278,124.73,124.69,3.36054113]
[1769651256511,0.40267272,124.69,124.62,3.36054113]
[1769651256811,2.46877278,124.67,124.62,3.36054113]
[1769651257411,2.46877278,124.66,124.62,3.36054113]
[1769651257616,2.46877278,124.67,124.62,3.36054113]
[1769651258308,2.46877278,124.66,124.62,3.36054113]
[1769651258512,2.46877278,124.66,124.6,3.36054113]
[1769651259102,2.8714455,124.67,124.61,7.2329]
[1769651259503,2.8714455,124.67,124.61,10.59344113]
[1769651260114,10.1009455,124.67,124.61,3.36054113]
[1769651260808,2.46877278,124.65,124.59,3.36054113]
[1769651261005,0.40267272,124.65,124.59,3.36054113]
[1769651261210,2.8714455,124.64,124.57,292.66931391]
[1769651261410,2.46877278,124.63,124.57,10.59574113]
[1769651261611,2.46877278,124.62,124.57,3.36054113]
[1769651261804,2.46877278,124.64,124.58,3.36054113]
[1769651262213,2.46877278,124.66,124.6,3.36054113]
[1769651262415,2.8714455,124.66,124.6,3.36054113]
[1769651262721,10.1017455,124.66,124.6,3.36054113]
[1769651263418,2.46877278,124.67,124.61,3.36054113]
[1769651263820,0.40267272,124.67,124.61,5.82931391]
[1769651264524,0.40267272,124.67,124.55,112.5643]
[1769651264525,0.40267272,124.63,124.52,3.36054113]
[1769651264821,2.8714455,124.6,124.53,2.46877278]
[1769651265122,2.8714455,124.6,124.53,3.36054113]
[1769651265420,0.40267272,124.6,124.53,5.82931391]
[1769651265812,0.40267272,124.6,124.54,2.46877278]
[1769651266018,2.8714455,124.62,124.55,5.82931391]
[1769651266318,0.40267272,124.62,124.56,2.46877278]
[1769651266515,2.8714455,124.62,124.55,5.82931391]
[1769651267624,7.2321,124.63,124.57,5.82931391]
[1769651267921,10.1035455,124.63,124.57,5.82931391]
[1769651268823,2.8714455,124.61,124.55,3.36054113]
[1769651269018,2.46877278,124.6,124.53,5.82931391]
[1769651269323,2.8714455,124.61,124.54,5.82931391]
[1769651269918,0.40267272,124.61,124.54,5.82931391]
[1769651270415,7.63587272,124.61,124.55,2.46877278]
[1769651271224,7.2322,124.63,124.58,3.36054113]
[1769651272325,7.2322,124.63,124.57,2.46877278]
[1769651272716,7.2322,124.63,124.58,2.46877278]
[1769651274628,7.2311,124.65,124.59,5.82931391]
[1769651274924,7.2311,124.65,124.6,2.46877278]
[1769651275537,7.2313,124.64,124.6,2.47591507]
[1769651277522,7.6334477,124.63,124.56,3.40373004]
[1769651277728,7.6334477,124.63,124.57,2.47591507]
[1769651277927,0.4015477,124.63,124.58,2.47591507]
[1769651278522,7.2311,124.65,124.6,2.47591507]
[1769651279023,7.6326477,124.65,124.6,2.47591507]
[1769651279722,7.6326477,124.65,124.59,2.47591507]
[1769651280427,7.2314,124.64,124.59,2.47591507]
[1769651282524,2.87746277,124.65,124.59,5.87964511]
[1769651283634,7.6322477,124.65,124.59,5.87964511]
[1769651283936,2.87746277,124.67,124.6,5.87964511]
[1769651284328,7.2301,124.66,124.6,5.87964511]
[1769651284729,7.2308,124.65,124.6,5.87964511]
[1769651285330,7.6313477,124.67,124.6,5.87964511]
[1769651285528,10.10726277,124.67,124.6,5.87964511]
[1769651286640,7.2298,124.67,124.62,3.40373004]
[1769651286932,7.2289,124.68,124.63,5.87964511]
[1769651287142,7.2289,124.68,124.64,2.47591507]
[1769651287739,7.2289,124.68,124.63,3.40373004]
[1769651289738,2.87746277,124.71,124.65,3.40373004]
[1769651290743,9.70371507,124.7,124.65,3.40373004]
[1769651291438,7.2278,124.7,124.65,3.40373004]
[1769651292041,9.70371507,124.7,124.65,3.40373004]
[1769651292340,10.10526277,124.7,124.63,13.11144511]
[1769651293037,2.47591507,124.67,124.61,5.87964511]
[1769651293347,2.87746277,124.67,124.61,3.40373004]
[1769651293550,2.87746277,124.67,124.62,7.2324]
[1769651293740,0.4015477,124.67,124.62,7.2324]
[1769651294548,2.87746277,124.67,124.62,7.2324]
[1769651294942,2.47591507,124.68,124.62,13.11204511]